[Event "44th Chess Olympiad Women 2022"]
[Site "Chennai"]
[Date "2022.08.07"]
[Round "9.3"]
[White "Salimova, Nurgyul"]
[Black "Abdumalik, Zhansaya"]
[Result "0-1"]
[WhiteElo "2416"]
[BlackElo "2495"]
[Annotator "TA"]
[PlyCount "136"]
[EventDate "2022.??.??"]
[TimeControl "60"]

{[%evp 12,136,23,4,27,11,37,15,25,27,34,40,39,15,15,5,23,17,28,-10,0,0,0,0,0,0,
0,0,0,0,0,0,0,0,0,-77,-29,-56,-31,-56,16,0,0,0,0,0,97,-80,-73,-64,-68,-63,-70,
-79,-58,-117,-113,-135,-105,-220,-145,-160,-80,-79,-84,-162,-156,-254,-254,
-303,-312,-318,-318,-374,-339,-332,-306,-311,-308,-304,-300,-305,-304,-279,
-265,-314,-320,-442,-435,-425,-427,-398,-393,-437,-424,-449,-448,-483,-450,
-549,-529,-702,-680,-1097,-1066,-1155,-1164,-1035,-1092,-1005,-879,-1068,-714,
-1483,-1700,-1150,-747,-1897,-1825,-2325,-2118,-2114,-2043,-6095,-5936,-4841,
-4840]} 1. d4 {[%emt 0:00:03]} Nf6 {[%emt 0:00:11]} 2. Nf3 {[%emt 0:00:07]} d5
{[%emt 0:00:12]} 3. c4 {[%emt 0:00:15]} e6 {[%emt 0:00:18]} 4. g3 {[%emt 0:00:
00]} Be7 {[%emt 0:00:19]} 5. Bg2 {[%emt 0:00:17]} O-O {[%emt 0:00:11]} 6. O-O {
[%emt 0:01:27]} c6 {[%emt 0:00:19]} 7. Bf4 {[%emt 0:03:00]} a5 {[%emt 0:02:03]
E11: Bogo-Indian.} 8. Qc2 {[%emt 0:03:35]} Nh5 {[%emt 0:04:00]} 9. Bd2 {
[%emt 0:01:22]} Nf6 {[%emt 0:00:23] The position is equal.} 10. Rd1 {[%emt 0:
00:00]} b5 {[%emt 0:03:40]} 11. c5 {[%emt 0:03:29]} Nbd7 {[%emt 0:05:12]} 12.
Nc3 {[%emt 0:02:09]} Ba6 {[%emt 0:08:19]} 13. Be1 {[%emt 0:07:46]} b4 {[%emt 0:
00:00]} 14. Na4 {[%emt 0:00:19] [#]} Qc7 $146 {[%emt 0:01:40]} ({Predecessor:} 
14... Ne4 15. e3 Qb8 16. b3 g5 17. a3 g4 18. Nh4 f5 19. axb4 axb4 20. Nb2 Bf6
21. f3 gxf3 22. Nxf3 {0-1 (39) Kozul,Z (2619)-Bischoff,K (2493) Germany 2022})
15. a3 {[%emt 0:01:56]} b3 {[%emt 0:03:19]} 16. Qxb3 {[%emt 0:02:05]} Bxe2 {
[%emt 0:03:26]} 17. Rdb1 {[%emt 0:01:38]} Ne4 {[%emt 0:03:28]} 18. Qc2 {
[%emt 0:04:28]} Bxf3 {[%emt 0:11:39]} 19. Bxf3 {[%emt 0:00:06]} f5 {[%emt 0:00:
00]} 20. Bg2 {[%emt 0:16:36]} Bf6 {[%emt 0:06:40]} 21. Rd1 {[%emt 0:01:24]} e5
{[%emt 0:02:53]} 22. dxe5 {[%emt 0:08:20]} Nxe5 {[%emt 0:03:46]} 23. b4 {
[%emt 0:02:19]} (23. f3 Ng5 24. f4 (24. Qxf5 $2 Nexf3+ 25. Kh1 Bxb2 $19) 24...
Nef3+ 25. Bxf3 (25. Kh1 Nxe1 26. Rxe1 Ne4 $17) 25... Nxf3+ 26. Kg2 Nd4 $15) (
23. Kh1 $11) 23... Nc4 {[%emt 0:05:35]} (23... axb4 $17 24. axb4 Qf7) 24. Ra2 {
[%emt 0:02:39][%cal Ya4b6]} axb4 {[%emt 0:00:35]} 25. axb4 {[%emt 0:01:50]
[%cal Yb4b5]} h5 {[%emt 0:02:34]} ({Black should play} 25... Rfe8 $15) 26. Qb3
{[%emt 0:10:22]} Rfb8 {[%emt 0:02:25]} 27. f3 {[%emt 0:03:19]} Ng5 $36 {
[%emt 0:01:45] White is under pressure.} 28. Bf2 {[%emt 0:01:42]} f4 {[%emt 0:
04:07]} (28... Qb7 $11 {remains equal.} 29. Nb6 Rxa2 30. Qxa2 Nxb6 31. cxb6 Bd8
) 29. gxf4 $2 {[%emt 0:03:03]} (29. Nb6 $1 $16 Rxa2 30. Qxa2) 29... Qxf4 $17 {
[%emt 0:02:37]} 30. Bg3 {[%emt 0:00:55]} Qe3+ {[%emt 0:00:25]} 31. Qxe3 {
[%emt 0:00:06]} Nxe3 {[%emt 0:00:03]} 32. Bxb8 {[%emt 0:03:58][%cal Yd1d3]}
Nxd1 {[%emt 0:00:04] Pair of Knights!} 33. Bf4 {[%emt 0:01:28]} ({White should
try} 33. Bg3 $1 $15) 33... Ne6 {[%emt 0:05:17]} 34. Bc1 {[%emt 0:00:00]} Nd4 {
[%emt 0:01:30] Black is much more active.} 35. Bh3 {[%emt 0:04:27]} (35. Nc3
$17 {is a better defense.} Re8 36. Nxd1 Re1+ 37. Bf1) 35... Nxf3+ {[%emt 0:04:
09]} 36. Kf1 {[%emt 0:01:14][%cal Yb4b5]} Nxh2+ {[%emt 0:02:55]} 37. Rxh2 {
[%emt 0:00:51] [#] Strongly threatening Ra2.} Rxa4 {[%emt 0:00:06]} 38. Be6+ {
[%emt 0:00:11]} (38. b5 $17 {might work better.} cxb5 39. Be6+ Kf8 40. Bd2)
38... Kf8 $19 {[%emt 0:00:45]} 39. Bf4 {[%emt 0:00:23]} (39. Rxh5 $17 {was
called for.} Ke7 40. Bf5) 39... Ke7 {[%emt 0:00:41]} ({Wrong is} 39... Rxb4 $2
40. Bd6+ Ke8 41. Rxh5 $19) 40. Re2 {[%emt 0:00:54]} Nc3 {[%emt 0:00:36]} ({
Less strong is} 40... Rxb4 41. Bd6+ Kd8 42. Ra2 Ne3+ 43. Ke2 Rb2+ 44. Rxb2 Bxb2
45. Kxe3 $16) 41. Bd6+ {[%emt 0:30:32]} Kd8 {[%emt 0:30:38]} 42. Rh2 {[%emt 0:
00:00]} Ra1+ {[%emt 0:03:59]} 43. Kg2 {[%emt 0:00:45]} Ra2+ {[%emt 0:00:02]}
44. Kf3 {[%emt 0:00:21]} Rxh2 {[%emt 0:00:31]} 45. Bxh2 {[%emt 0:00:05]
Endgame KBB-KBN} Ke7 {[%emt 0:00:29] Prevents Bf7.} 46. Bf5 {[%emt 0:00:00]}
Nb5 {[%emt 0:00:35] [#] White must now prevent ...Nd4+.} 47. Bg6 {[%emt 0:00:
00]} h4 {[%emt 0:01:10]} 48. Kg4 {[%emt 0:00:06]} Bc3 {[%emt 0:00:14]} 49. Kxh4
{[%emt 0:00:15]} Bxb4 {[%emt 0:00:10]} 50. Be5 {[%emt 0:00:10]} Bc3 {[%emt 0:
00:14]} 51. Bf4 {[%emt 0:00:16]} Bd4 {[%emt 0:00:21]} 52. Bd3 {[%emt 0:00:00]}
Bxc5 {[%emt 0:00:10] Black is clearly winning.} 53. Kg5 {[%emt 0:00:12]} Bd4 {
[%emt 0:00:18]} 54. Kg6 {[%emt 0:00:17]} Nd6 {[%emt 0:00:13]} 55. Bg5+ {
[%emt 0:00:30]} Kd7 {[%emt 0:00:15]} 56. Be2 {[%emt 0:00:15]} c5 {[%emt 0:00:
00][%cal Yc6c5,Yc5c4]} 57. Kh5 {[%emt 0:00:57]} c4 {[%emt 0:00:24]} 58. Kg4 {
[%emt 0:00:05]} Kc6 {[%emt 0:00:16]} 59. Kf3 {[%emt 0:00:24]} Bf6 {[%emt 0:00:
11]} 60. Bf4 {[%emt 0:00:08]} Nf5 {[%emt 0:00:38] ( -> ...Nd4+)} 61. Bd1 {
[%emt 0:00:30]} Kc5 {[%emt 0:00:17] Hoping for ...c3.} 62. Kg4 {[%emt 0:00:00]}
Nd4 {[%emt 0:01:00]} 63. Bd2 {[%emt 0:00:05]} Nb5 {[%emt 0:00:17] And now ...
d4 would win.} 64. Kf4 {[%emt 0:00:18]} d4 {[%emt 0:00:12] aiming for .. .c3.}
65. Ke4 {[%emt 0:00:05]} Nd6+ {[%emt 0:00:07]} 66. Kf3 {[%emt 0:00:06]} c3 {
[%emt 0:00:11]} 67. Bc1 {[%emt 0:00:03]} Kc4 {[%emt 0:00:07]} 68. Ba3 {[%emt 0:
00:06]} Nb5 {[%emt 0:00:11] Weighted Error Value: White=0.42/Black=0.14 (very
precise)} 0-1

[Event "44th Chess Olympiad Women 2022"]
[Site "Chennai"]
[Date "2022.08.07"]
[Round "9.4"]
[White "Bayarmaa, Bayarjargal"]
[Black "Balajayeva, Khanim"]
[Result "0-1"]
[WhiteElo "2171"]
[BlackElo "2344"]
[Annotator "RC"]
[PlyCount "104"]
[EventDate "2022.??.??"]
[TimeControl "60"]

1. d4 {[%emt 0:00:12]} d5 {[%emt 0:00:06]} 2. Nf3 {[%emt 0:00:05]} Nf6 {
[%emt 0:00:10]} 3. g3 {[%emt 0:00:05]} c6 {[%emt 0:03:19]} 4. Bg2 {[%emt 0:00:
00]} Bf5 {[%emt 0:00:20]} 5. O-O {[%emt 0:00:28]} e6 {[%emt 0:00:35]} 6. Nbd2 {
[%emt 0:02:20]} h6 {[%emt 0:05:46]} 7. c4 {[%emt 0:00:15]} Be7 {[%emt 0:00:52]}
8. b3 {[%emt 0:01:05]} O-O {[%emt 0:00:26]} 9. Bb2 {[%emt 0:00:06]} a5 {
[%emt 0:00:54]} 10. a3 {[%emt 0:02:29]} Nbd7 {[%emt 0:08:51]} 11. Rc1 {[%emt 0:
00:00]} Bh7 {[%emt 0:05:04]} 12. Ne1 {[%emt 0:17:02]} Qb8 {[%emt 0:04:19]} 13.
Nd3 {[%emt 0:08:36]} Rc8 {[%emt 0:14:11]} 14. Re1 {[%emt 0:04:02]} a4 {[%emt 0:
00:00]} 15. b4 {[%emt 0:02:13]} b5 {[%emt 0:14:14]} 16. c5 {[%emt 0:12:58]} Re8
{[%emt 0:06:02]} 17. Ne5 {[%emt 0:04:46]} Qc7 {[%emt 0:01:54]} 18. Ndf3 {
[%emt 0:05:56]} Rad8 {[%emt 0:00:39]} 19. h3 {[%emt 0:05:08]} Nf8 {[%emt 0:00:
00]} 20. Ra1 {[%emt 0:04:54]} Ne4 {[%emt 0:03:59]} 21. Qc1 {[%emt 0:02:57]} Rc8
{[%emt 0:03:46]} 22. Qf4 {[%emt 0:03:21]} Bd8 {[%emt 0:00:41]} 23. Rad1 {
[%emt 0:00:59]} Qb7 {[%emt 0:04:18]} 24. h4 {[%emt 0:05:26]} g5 {[%emt 0:04:51]
} 25. Qc1 {[%emt 0:07:07]} f6 {[%emt 0:00:28]} 26. Nd3 {[%emt 0:00:20]} Qg7 {
[%emt 0:00:57]} 27. hxg5 {[%emt 0:02:23]} hxg5 {[%emt 0:00:07]} 28. Nh2 {
[%emt 0:00:17]} Bc7 {[%emt 0:02:09]} 29. Nf1 {[%emt 0:01:00]} Bf5 {[%emt 0:00:
00]} 30. Bc3 {[%emt 0:02:58]} Qh6 {[%emt 0:01:21]} 31. Bd2 {[%emt 0:02:06]} Re7
{[%emt 0:00:19]} 32. f3 {[%emt 0:02:30]} Nxg3 {[%emt 0:00:31]} 33. e4 {[%emt 0:
00:00]} dxe4 {[%emt 0:03:02]} 34. fxe4 {[%emt 0:01:20]} Bg4 {[%emt 0:00:03]}
35. Nxg3 {[%emt 0:00:54]} Bxg3 {[%emt 0:00:04]} 36. Re3 {[%emt 0:00:07]} Qh2+ {
[%emt 0:02:04]} 37. Kf1 {[%emt 0:00:18]} Bh3 {[%emt 0:00:24]} 38. Ne1 {[%emt 0:
00:00]} Bxg2+ {[%emt 0:00:40]} 39. Nxg2 {[%emt 0:00:14]} Qh1+ {[%emt 0:00:03]}
40. Ke2 {[%emt 0:00:14]} Qxg2+ {[%emt 0:00:02]} 41. Kd3 {[%emt 0:30:06]} Bf2 {
[%emt 0:30:36]} 42. Re2 {[%emt 0:00:14]} Qf3+ {[%emt 0:00:22]} 43. Be3 {
[%emt 0:00:04]} Bxe3 {[%emt 0:00:41]} 44. Rxe3 {[%emt 0:00:04]} Qh5 {[%emt 0:
00:00]} 45. Rf1 {[%emt 0:02:53]} Ng6 {[%emt 0:03:35]} 46. Rxf6 {[%emt 0:00:00]}
Nf4+ {[%emt 0:00:00]} 47. Kc2 {[%emt 0:00:00]} Qh8 {[%emt 0:00:00]} 48. e5 {
[%emt 0:00:00]} Qh7+ {[%emt 0:00:00]} 49. Kb2 {[%emt 0:00:00]} Nd3+ {[%emt 0:
00:00]} 50. Rxd3 {[%emt 0:00:00]} Qxd3 {[%emt 0:00:00]} 51. Qg1 {[%emt 0:00:00]
} Rg7 {[%emt 0:00:00]} 52. Rxe6 {[%emt 0:00:00]} Qb3+ {[%emt 0:00:00]} 0-1

[Event "44th Chess Olympiad Women 2022"]
[Site "Chennai"]
[Date "2022.08.07"]
[Round "9.4"]
[White "Beydullayeva, Govhar"]
[Black "Munkhzul, Turmunkh"]
[Result "1/2-1/2"]
[WhiteElo "2390"]
[BlackElo "2277"]
[Annotator "TA"]
[PlyCount "85"]
[EventDate "2022.??.??"]
[TimeControl "60"]

{[%evp 13,85,25,34,38,58,19,94,93,75,73,94,94,95,78,109,116,115,101,97,75,82,
87,88,100,154,142,256,93,97,89,108,106,99,84,85,104,101,96,91,22,31,0,76,0,22,
27,265,244,290,285,279,257,247,200,171,126,127,115,89,79,278,91,97,20,29,19,18,
8,8,0,16,0,0,0]} 1. d4 {[%emt 0:00:01]} Nf6 {[%emt 0:00:14]} 2. c4 {[%emt 0:00:
00]} g6 {[%emt 0:00:18]} 3. Nc3 {[%emt 0:00:07]} Bg7 {[%emt 0:00:12]} 4. e4 {
[%emt 0:00:06]} d6 {[%emt 0:00:13]} 5. h3 {[%emt 0:00:19][%cal Yh2h3,Yh3h4,
Yh4h5,Yh5h6]} O-O {[%emt 0:00:22]} 6. Be3 {[%emt 0:00:07]} e5 {[%emt 0:00:36]}
7. d5 {[%emt 0:00:29]} Na6 {[%emt 0:00:22]} 8. g4 {[%emt 0:00:00] E71: King's
Indian: 4 e4 d6 5 h3.} Nd7 {[%emt 0:00:40] [#]} 9. h4 $146 {[%emt 0:04:27]} ({
Predecessor:} 9. Nge2 Ndc5 10. Ng3 Qh4 11. Qd2 f6 12. Be2 Bd7 13. O-O-O Nb4 14.
Kb1 a5 15. Rdg1 {1-0 (60) Livaic,L (2507)-Nevednichy,V (2531) Chess.com INT
2020}) 9... Nf6 {[%emt 0:04:53]} (9... f5 $1 $11 {keeps the balance.}) 10. Be2
$16 {[%emt 0:05:14] White is better.} Nc5 {[%emt 0:03:45]} 11. Bf3 {[%emt 0:02:
47]} a5 {[%emt 0:09:05]} 12. h5 {[%emt 0:05:46]} c6 {[%emt 0:10:18]} 13. dxc6 {
[%emt 0:10:29]} Ne6 {[%emt 0:04:20]} 14. cxb7 {[%emt 0:03:47] 0x0.
001e3cb91b5cdp-1022s more active pieces. The black rooks are badly placed.}
Bxb7 {[%emt 0:00:09][%cal Ye6d4]} 15. h6 {[%emt 0:01:47]} Bh8 {[%emt 0:00:44]
[%cal Ye6d4]} 16. Nge2 {[%emt 0:00:57] Prevents Nd4.} Rc8 {[%emt 0:04:19]} 17.
b3 {[%emt 0:06:26]} Nd7 {[%emt 0:09:33][%cal Yf6d7,Yd7c5,Yc5e6,Ye6c5]} 18. Qd2
{[%emt 0:10:44]} (18. Qxd6 $6 Nd4 19. O-O-O (19. Nxd4 $2 exd4 20. Bxd4 Rc6 $19)
19... Rc6 $11) 18... Qf6 {[%emt 0:07:10]} (18... Ndc5 $142) 19. Bg2 {[%emt 0:
03:52]} Nf4 {[%emt 0:00:46]} (19... Ndc5 $16 20. O-O-O (20. Qxd6 Rfd8 $11)
20... a4) 20. Bh3 $2 {[%emt 0:09:40]} (20. Nxf4 $2 exf4 21. Bxf4 Qxc3 $19) (20.
Bxf4 $18 {is the precise move to win.} exf4 21. e5 Nxe5 22. Bxb7) 20... Rcd8 {
[%emt 0:11:02][%cal Ya5a4]} 21. O-O-O {[%emt 0:00:00]} (21. Bxf4 exf4 22. f3
Qh4+ 23. Kf1 Qxh6 $11) 21... Nc5 {[%emt 0:02:06]} 22. Nxf4 {[%emt 0:03:21]} ({
Much worse is} 22. Bxf4 $6 exf4 23. f3 Rfe8 $11) 22... exf4 {[%emt 0:00:06]}
23. Bd4 {[%emt 0:00:02]} Qxd4 {[%emt 0:02:32]} 24. Qxd4 {[%emt 0:00:01]} Bxd4 {
[%emt 0:00:11]} 25. Rxd4 {[%emt 0:00:00]} Ne6 {[%emt 0:00:19]} 26. Rd3 {
[%emt 0:06:29]} (26. Rd2 $16) 26... Nc5 $11 {[%emt 0:00:00][%csl Yd3,Ye4]} 27.
Rd4 {[%emt 0:01:41] Black must now prevent Rhd1.} Ne6 $1 {[%emt 0:01:25]} 28.
Rd3 {[%emt 0:01:14]} (28. Rd2 $16) 28... Nc5 {[%emt 0:00:06][%csl Yd3,Ye4]} 29.
Rd2 $36 {[%emt 0:01:36] White fights for an advantage.} a4 $2 {[%emt 0:06:34] 
[#]} (29... Bxe4 $11 {and Black stays safe.} 30. Rhd1 Bf3) 30. b4 $1 $18 {
[%emt 0:03:06]} Nxe4 {[%emt 0:00:00]} 31. Nxe4 {[%emt 0:01:24]} Bxe4 {[%emt 0:
00:06]} 32. Re1 {[%emt 0:01:58]} f5 {[%emt 0:01:11]} 33. gxf5 {[%emt 0:02:17]}
gxf5 {[%emt 0:00:25]} 34. Red1 {[%emt 0:04:28]} Rf6 {[%emt 0:09:29]} 35. c5 {
[%emt 0:01:24][%cal Rd2d6]} ({Much less strong is} 35. Rg1+ $6 Kh8 $14) 35...
Rxh6 {[%emt 0:01:04]} 36. Bf1 {[%emt 0:00:32] aiming for b5.} Rb8 {[%emt 0:05:
14]} (36... Bf3 $16) 37. cxd6 $2 {[%emt 0:02:32]} (37. Rxd6 $18 Rxd6 38. Rxd6 (
38. cxd6 Kf7 $11)) 37... a3 $16 {[%emt 0:00:10] [#] Hoping for ...Rc8+.} (37...
Rxb4 $2 38. Rb2 Rxb2 39. Kxb2 $18) 38. Bc4+ {[%emt 0:00:58]} ({White should
play} 38. Rd4 $1 $16) 38... Kf8 $1 $11 {[%emt 0:00:35]} 39. d7 {[%emt 0:00:26]}
Rd8 {[%emt 0:00:07] The position is equal.} 40. b5 {[%emt 0:01:19]} Ke7 {
[%emt 0:03:30]} 41. Re1 {[%emt 0:12:10] Strongly threatening f3.} f3 {[%emt 0:
12:18]} 42. Bd5 {[%emt 0:00:00]} Rxd7 {[%emt 0:09:21]} 43. Bxe4 {[%emt 0:01:04]
White really could win this. Weighted Error Value: White=0.28 (precise) /
Black=0.34} 1/2-1/2

[Event "44th Chess Olympiad Women 2022"]
[Site "Chennai"]
[Date "2022.08.07"]
[Round "9.4"]
[White "Mammadzada, Gunay"]
[Black "Enkhtuul, Altan-Ulzii"]
[Result "1-0"]
[WhiteElo "2455"]
[BlackElo "2267"]
[Annotator "TA"]
[PlyCount "129"]
[EventDate "2022.??.??"]
[TimeControl "60"]

{[%evp 10,129,47,26,86,84,106,98,110,97,117,126,145,91,108,83,189,171,237,235,
252,256,237,235,322,313,318,319,343,325,447,441,445,308,441,444,435,376,543,
400,401,394,397,394,377,311,332,318,319,326,304,278,287,278,346,357,361,325,
447,437,447,435,422,428,454,455,518,518,512,508,493,513,610,602,1617,649,1568,
1479,1296,1258,6165,1025,9847,29959,7038,7058,6127,6165,5933,5485,2945,2852,
29977,29978,29983,29984,29984,29985,29983,29981,29982,29982,29987,29983,29983,
29984,29984,29985,29986,29986,29986,29987,29988,29988,29988,29989,29989,29990,
29990,29989,29991,29991]} 1. e4 {[%emt 0:00:04]} d6 {[%emt 0:00:05]} 2. d4 {
[%emt 0:00:06]} Nf6 {[%emt 0:00:04]} 3. Nc3 {[%emt 0:00:05]} g6 {[%emt 0:00:03]
} 4. Be3 {[%emt 0:01:31]} c6 {[%emt 0:00:14]} 5. Qd2 {[%emt 0:02:23]} b5 {
[%emt 0:00:15]} 6. Bd3 {[%emt 0:04:57]} Ng4 {[%emt 0:17:57] B07: Pirc Defence:
Miscellaneous Systems.} (6... e5 $11 {remains equal.}) 7. Bg5 $1 $16 {[%emt 0:
00:00]} h6 {[%emt 0:00:20]} 8. Bh4 {[%emt 0:00:26] [#]} Qc7 $146 {[%emt 0:00:
00] White is better.} ({Predecessor:} 8... Bg7 9. h3 Nf6 10. Nf3 a6 11. O-O-O
Be6 12. Kb1 Nbd7 13. Rhe1 Nb6 14. e5 dxe5 15. Nxe5 {½-½ (38) Turkova,K (1882)
-Richtrova,E (2204) Prague 2022}) 9. f4 {[%emt 0:04:04]} Bg7 {[%emt 0:07:18]}
10. Nf3 {[%emt 0:03:21]} b4 {[%emt 0:07:08]} 11. Na4 {[%emt 0:09:58]} ({
White should play} 11. Ne2) 11... c5 {[%emt 0:05:42]} 12. dxc5 {[%emt 0:14:55]}
dxc5 {[%emt 0:00:01]} (12... Bd7 $16) 13. e5 $1 $18 {[%emt 0:08:05] Strongly
threatening h3.} c4 {[%emt 0:13:09] [#]} (13... Bd7 $142) 14. Be4 $1 {[%emt 0:
00:00]} Bb7 {[%emt 0:00:18]} 15. Bxb7 {[%emt 0:02:35]} Qxb7 {[%emt 0:00:07] [#]
} 16. O-O-O $1 {[%emt 0:00:21][%csl Gd1][%cal Rd2d8]} (16. Nc5 $6 Qc7 $16)
16... Nd7 {[%emt 0:30:17]} 17. h3 {[%emt 0:01:08]} g5 {[%emt 0:00:22][%cal
Rg4e5]} 18. Be1 {[%emt 0:02:34]} ({Don't do} 18. hxg4 $6 gxh4 19. Nxh4 (19.
Rxh4 Qb5 $18) 19... e6 $16) (18. fxg5 Ngxe5 19. Nxe5 Nxe5 $11) 18... c3 {
[%emt 0:02:02]} 19. Qe2 {[%emt 0:10:25]} Qc6 {[%emt 0:00:50]} 20. b3 {[%emt 0:
00:00]} ({Less strong is} 20. hxg4 Qxa4 21. Kb1 Rc8 $16) 20... Ngxe5 {[%emt 0:
00:00]} 21. Nxe5 {[%emt 0:04:03]} Bxe5 {[%emt 0:00:12]} (21... Nxe5 $142 22.
fxe5 O-O) 22. fxe5 {[%emt 0:00:02]} Nb6 {[%emt 0:00:29]} 23. Qf3 {[%emt 0:00:
00]} Qc8 {[%emt 0:00:30]} (23... Qxf3 {was worth a try.} 24. gxf3 Nxa4 25. bxa4
a5) 24. Qg4 {[%emt 0:00:49]} Nxa4 {[%emt 0:03:24]} 25. Qxc8+ {[%emt 0:01:06]} (
{Resist} 25. bxa4 Qe6 26. Qxe6 fxe6 $18) 25... Rxc8 {[%emt 0:00:05]} 26. bxa4 {
[%emt 0:00:05]} Rc5 {[%emt 0:00:46]} 27. Bg3 {[%emt 0:06:20]} Ra5 {[%emt 0:00:
00]} 28. Kb1 {[%emt 0:04:00]} Rxa4 {[%emt 0:00:52]} 29. Rhe1 {[%emt 0:01:03]}
O-O {[%emt 0:00:48]} 30. e6 {[%emt 0:00:31]} Ra6 {[%emt 0:01:30]} 31. exf7+ {
[%emt 0:05:10]} Rxf7 {[%emt 0:00:05]} 32. Rd8+ {[%emt 0:00:12]} Kg7 {[%emt 0:
00:00]} 33. Rb8 {[%emt 0:01:57]} Rb6 {[%emt 0:00:53]} 34. Rxb6 {[%emt 0:00:09]}
axb6 {[%emt 0:00:02] Endgame KRB-KR} 35. a3 {[%emt 0:00:04]} bxa3 {[%emt 0:00:
35]} 36. Ka2 {[%emt 0:00:13]} h5 {[%emt 0:01:21]} 37. Kxa3 {[%emt 0:00:00]} h4
{[%emt 0:00:29]} 38. Be5+ {[%emt 0:00:06]} Kg6 {[%emt 0:00:24]} 39. Re2 {
[%emt 0:00:11] Prevents Rf2.} Rf5 {[%emt 0:00:36]} 40. Bxc3 {[%emt 0:00:00]}
Kf7 {[%emt 0:00:08]} 41. Bd4 {[%emt 0:30:25] Rf2 is the strong threat.} b5 {
[%emt 0:04:35]} 42. Kb4 {[%emt 0:00:00]} (42. Rf2 $142 Kg6 43. Rxf5 Kxf5 44.
Be3) 42... Ke8 {[%emt 0:03:31]} 43. Bc5 {[%emt 0:00:00]} Kd7 {[%emt 0:04:16]}
44. Kxb5 {[%emt 0:00:00]} e6 {[%emt 0:00:21]} 45. c4 {[%emt 0:00:00] White
wants to mate with Rd2+.} e5 {[%emt 0:02:12]} 46. Rf2 {[%emt 0:00:00]} Rf4 {
[%emt 0:00:27]} 47. Be3 {[%emt 0:00:00]} Re4 {[%emt 0:00:47]} 48. Bxg5 {
[%emt 0:00:00]} Re1 {[%emt 0:00:09]} 49. Bxh4 {[%emt 0:00:00] Intending Rd2+
and mate.} Rb1+ {[%emt 0:00:23]} 50. Kc5 {[%emt 0:00:00] g4 would kill now.}
Rd1 {[%emt 0:00:09]} 51. g4 {[%emt 0:00:00][%cal Yg2g4,Yg4g5] White mates.} Rd3
{[%emt 0:00:32]} 52. Rf7+ {[%emt 0:00:00]} Ke8 {[%emt 0:01:03]} 53. Re7+ {
[%emt 0:00:00]} Kf8 {[%emt 0:00:04]} 54. Rxe5 {[%emt 0:00:00]} Rxh3 {[%emt 0:
00:04]} 55. Bf6 {[%emt 0:00:00]} Rd3 {[%emt 0:00:35]} 56. g5 {[%emt 0:00:00]}
Kf7 {[%emt 0:00:56]} 57. Kc6 {[%emt 0:00:00]} Rd1 {[%emt 0:00:44]} 58. c5 {
[%emt 0:00:00][%cal Yc4c5,Yc5c6,Yc6c7]} Rc1 {[%emt 0:00:51]} 59. Kc7 {[%emt 0:
00:00]} Rc2 {[%emt 0:00:11]} 60. c6 {[%emt 0:00:00]} Rc1 {[%emt 0:00:00]} 61.
Kb7 {[%emt 0:00:00]} Rb1+ {[%emt 0:00:28]} 62. Kc8 {[%emt 0:00:00]} Rd1 {
[%emt 0:02:02]} 63. c7 {[%emt 0:00:00]} Rc1 {[%emt 0:00:11]} 64. Rb5 {[%emt 0:
00:00]} Rd1 {[%emt 0:00:18]} 65. Kb8 {[%emt 0:00:00] Weighted Error Value:
White=0.22 (precise) /Black=0.43} 1-0

[Event "44th Chess Olympiad Women 2022"]
[Site "Chennai"]
[Date "2022.08.07"]
[Round "9.4"]
[White "Mungunzul, Bat-Erdene"]
[Black "Mammadova, Gulnar"]
[Result "1-0"]
[WhiteElo "2163"]
[BlackElo "2380"]
[Annotator "RC"]
[PlyCount "113"]
[EventDate "2022.??.??"]
[TimeControl "60"]

1. d4 {[%emt 0:00:02]} d5 {[%emt 0:00:07]} 2. c4 {[%emt 0:00:15]} dxc4 {
[%emt 0:00:07]} 3. Nc3 {[%emt 0:00:20]} a6 {[%emt 0:00:10]} 4. a4 {[%emt 0:00:
00]} Nc6 {[%emt 0:00:09]} 5. e3 {[%emt 0:07:54]} e5 {[%emt 0:00:19]} 6. Nf3 {
[%emt 0:04:13]} exd4 {[%emt 0:02:05]} 7. exd4 {[%emt 0:02:03]} Na5 {[%emt 0:00:
00]} 8. Ne5 {[%emt 0:09:07]} Qe7 {[%emt 0:11:07]} 9. Be3 {[%emt 0:12:38]} Nf6 {
[%emt 0:11:45]} 10. Nxc4 {[%emt 0:04:22]} Bg4 {[%emt 0:01:43]} 11. Qc2 {
[%emt 0:02:39]} Nc6 {[%emt 0:02:00]} 12. Be2 {[%emt 0:00:57]} Bxe2 {[%emt 0:00:
00]} 13. Qxe2 {[%emt 0:04:41]} O-O-O {[%emt 0:01:14]} 14. Rd1 {[%emt 0:01:24]}
Nd5 {[%emt 0:07:45]} 15. O-O {[%emt 0:03:18]} f6 {[%emt 0:05:06]} 16. Rc1 {
[%emt 0:10:45]} Qe6 {[%emt 0:04:06]} 17. Rfd1 {[%emt 0:02:50]} Bb4 {[%emt 0:00:
00]} 18. Qd3 {[%emt 0:05:18]} g5 {[%emt 0:06:38]} 19. Ne4 {[%emt 0:01:58]} Rhe8
{[%emt 0:11:49]} 20. Ng3 {[%emt 0:02:42]} Rd7 {[%emt 0:00:00]} 21. Qf5 {
[%emt 0:05:54]} Qxf5 {[%emt 0:01:57]} 22. Nxf5 {[%emt 0:00:03]} Red8 {[%emt 0:
00:00]} 23. h4 {[%emt 0:02:12]} Nde7 {[%emt 0:04:28]} 24. Ng7 {[%emt 0:01:31]}
gxh4 {[%emt 0:02:31]} 25. Kh2 {[%emt 0:00:40]} b5 {[%emt 0:03:01]} 26. axb5 {
[%emt 0:02:28]} axb5 {[%emt 0:00:02]} 27. Na3 {[%emt 0:00:18]} Rd5 {[%emt 0:00:
00]} 28. Ne6 {[%emt 0:01:59]} Bd6+ {[%emt 0:00:47]} 29. Kh3 {[%emt 0:03:07]}
Rg8 {[%emt 0:00:13]} 30. Nc5 {[%emt 0:00:46]} Na7 {[%emt 0:06:31]} 31. Ne4 {
[%emt 0:00:30]} Bxa3 {[%emt 0:01:08]} 32. bxa3 {[%emt 0:00:28]} Rg6 {[%emt 0:
00:00]} 33. Nc3 {[%emt 0:00:59]} Rd7 {[%emt 0:01:20]} 34. d5 {[%emt 0:00:29]}
c6 {[%emt 0:01:19]} 35. Bxa7 {[%emt 0:02:04]} Rxa7 {[%emt 0:00:02]} 36. d6 {
[%emt 0:00:11]} Nf5 {[%emt 0:01:01]} 37. Nxb5 {[%emt 0:00:17]} Ra5 {[%emt 0:00:
00]} 38. Rxc6+ {[%emt 0:01:12]} Kd8 {[%emt 0:00:06]} 39. Rb6 {[%emt 0:01:38]}
Ra8 {[%emt 0:00:43]} 40. d7 {[%emt 0:01:38]} Ne7 {[%emt 0:00:46]} 41. Rdd6 {
[%emt 0:33:34]} f5 {[%emt 0:30:37]} 42. Nd4 {[%emt 0:00:00]} Rxd6 {[%emt 0:00:
00]} 43. Rxd6 {[%emt 0:00:00]} Kc7 {[%emt 0:00:00]} 44. Nb5+ {[%emt 0:00:00]}
Kd8 {[%emt 0:00:00]} 45. Kxh4 {[%emt 0:00:00]} Rb8 {[%emt 0:00:00]} 46. Nd4 {
[%emt 0:00:00]} Kc7 {[%emt 0:00:00]} 47. d8=Q+ {[%emt 0:00:00]} Rxd8 {[%emt 0:
00:00]} 48. Rxd8 {[%emt 0:00:00]} Kxd8 {[%emt 0:00:00]} 49. Kg5 {[%emt 0:00:00]
} Kd7 {[%emt 0:00:00]} 50. Nxf5 {[%emt 0:00:00]} Nd5 {[%emt 0:00:00]} 51. Ne3 {
[%emt 0:00:00]} Nc3 {[%emt 0:00:00]} 52. f3 {[%emt 0:00:00]} Ke6 {[%emt 0:00:
00]} 53. f4 {[%emt 0:00:00]} Kf7 {[%emt 0:00:00]} 54. Kh6 {[%emt 0:00:00]} Ne2
{[%emt 0:00:00]} 55. f5 {[%emt 0:00:00]} Kf6 {[%emt 0:00:00]} 56. a4 {[%emt 0:
00:00]} Nd4 {[%emt 0:00:00]} 57. a5 {[%emt 0:00:41]} 1-0